bitfinex/quotes_SOLUSD_20250903
["timestamp","ask_amount","ask_price","bid_price","bid_amount"]
[1756905423762,1e-08,210.95,210.94,134.48689044]
[1756905423970,1e-08,210.95,210.94,135.18689044]
[1756905424375,1e-08,210.98,210.97,26.0]
[1756905424571,1e-08,210.98,210.97,160.46621631]
[1756905424765,1e-08,210.98,210.97,161.16621631]
[1756905425885,1e-08,210.98,210.97,160.46621631]
[1756905426477,1e-08,210.98,210.97,148.62001042]
[1756905426677,1e-08,210.98,210.97,160.46621631]
[1756905427075,1e-08,210.98,210.97,174.76181032]
[1756905429386,1e-08,211.07,211.06,11.84620589]
[1756905429695,1e-08,211.07,211.06,49.98620589]
[1756905429869,1e-08,211.07,211.06,50.68620589]
[1756905430891,1e-08,211.07,211.06,55.42419508]
[1756905431077,1e-08,211.07,211.06,54.72419508]
[1756905431879,1e-08,211.07,211.06,68.31978909]
[1756905433897,1e-08,211.09,211.08,26.0]
[1756905434093,1e-08,211.09,211.08,49.94620589]
[1756905434303,0.71,211.14,211.13,11.84620589]
[1756905434590,0.71,211.14,211.13,49.92620589]
[1756905435179,44.32973843,211.24,211.13,38.08]
[1756905435401,0.71,211.17,211.15,11.84620589]
[1756905435573,0.71,211.17,211.16,38.06]
[1756905435775,11.84620589,211.21,211.16,38.06]
[1756905435993,11.84620589,211.21,211.17,4.73552114]
[1756905436199,11.84620589,211.21,211.18,38.06]
[1756905436499,0.71,211.2,211.18,38.06]
[1756905436707,0.71,211.19,211.18,38.06]
[1756905438097,0.71,211.19,211.18,42.7952969]
[1756905438681,0.71,211.22,211.18,54.64150279]
[1756905439002,0.71,211.21,211.19,11.84620589]
[1756905439305,0.71,211.21,211.2,38.0]
[1756905439604,39.59559401,211.3,211.2,38.0]
[1756905439785,11.84620589,211.25,211.2,38.0]
[1756905440185,0.06,211.21,211.2,42.73480696]
[1756905440695,0.77,211.21,211.2,42.73480696]
[1756905441203,0.06,211.21,211.2,42.73480696]
[1756905441501,0.77,211.21,211.2,37.98]
[1756905441702,0.77,211.21,211.18,79.7]
[1756905442009,0.71,211.2,211.19,37.98]
[1756905442378,0.06,211.21,211.19,42.71507268]
[1756905442578,0.06,211.21,211.19,54.56127857]
[1756905443499,0.06,211.21,211.2,11.84620589]
[1756905443885,0.06,211.21,211.19,68.71507268]
[1756905444090,0.06,211.21,211.2,11.84620589]
[1756905444493,0.06,211.21,211.2,16.58105437]
[1756905445377,0.06,211.21,211.2,4.73484848]
[1756905446077,0.06,211.21,211.2,54.54105437]
[1756905446278,0.06,211.21,211.2,134.24105437]
[1756905447616,0.06,211.21,211.2,122.39484848]
[1756905447901,0.06,211.21,211.2,134.24105437]
[1756905448297,0.06,211.21,211.2,122.39484848]
[1756905448506,0.06,211.21,211.2,134.24105437]
[1756905448692,0.06,211.21,211.2,148.52664838]
[1756905449193,0.06,211.21,211.2,136.68044249]
[1756905449392,0.06,211.21,211.2,147.83664838]
[1756905449897,0.06,211.21,211.2,148.52664838]
[1756905450297,0.06,211.24,211.23,26.0]
[1756905450478,0.06,211.24,211.23,75.78620589]
[1756905450812,0.06,211.24,211.23,143.64]
[1756905450999,0.06,211.24,211.23,155.48620589]
[1756905451408,0.06,211.24,211.23,148.37417601]
[1756905451807,0.06,211.24,211.23,110.43417601]
[1756905452010,0.77,211.24,211.23,105.7]
[1756905452197,0.77,211.24,211.23,110.43417601]
[1756905452396,0.06,211.24,211.23,148.37417601]
[1756905453505,0.06,211.24,211.23,149.06417601]
[1756905453708,0.06,211.24,211.23,148.37417601]
[1756905454913,0.06,211.24,211.23,110.43417601]
[1756905455116,0.06,211.24,211.23,148.37417601]
[1756905455808,0.06,211.24,211.23,160.9103819]
[1756905456294,1e-08,211.24,211.23,174.50597591]
[1756905457334,1e-08,211.24,211.23,162.65977002]
[1756905457527,1e-08,211.24,211.23,174.50597591]
[1756905457818,1e-08,211.24,211.23,94.80597591]
[1756905458022,1e-08,211.24,211.23,82.95977002]
[1756905458618,1e-08,211.24,211.23,56.86597591]
[1756905458819,1e-08,211.24,211.23,94.80597591]
[1756905459927,1e-08,211.27,211.26,26.0]
[1756905460227,1e-08,211.27,211.26,63.92]
[1756905460401,1e-08,211.27,211.26,75.94620589]
[1756905461018,1e-08,211.27,211.26,80.67970962]
[1756905461327,1e-08,211.27,211.26,68.83350373]
[1756905461529,1e-08,211.27,211.26,80.67970962]
[1756905461729,1e-08,211.27,211.26,30.73350373]
[1756905461730,0.72000001,211.27,211.26,30.73350373]
[1756905461906,1e-08,211.27,211.26,68.83350373]
[1756905462107,1e-08,211.27,211.26,80.67970962]
[1756905462422,1e-08,211.27,211.26,68.83350373]
[1756905462630,1e-08,211.27,211.26,80.67970962]
[1756905463417,1e-08,211.27,211.26,73.97116855]
[1756905464011,0.72000001,211.27,211.26,4.73350373]
[1756905464305,0.72000001,211.27,211.26,42.97350373]
[1756905464506,5.85766483,211.27,211.21,4.76459481]
[1756905464711,5.13766482,211.23,211.21,4.76459481]
[1756905464909,1e-08,211.27,211.22,38.24]
[1756905465420,0.72,211.26,211.22,38.24]
[1756905465606,0.72,211.25,211.23,4.73417601]
[1756905465808,5.13766483,211.27,211.24,38.24]
[1756905466134,5.13766482,211.26,211.24,38.24]
[1756905466311,5.85766482,211.25,211.24,38.24]
[1756905467626,0.72,211.25,211.24,38.24]
[1756905467837,5.85766482,211.25,211.24,38.24]
[1756905468428,5.85766482,211.25,211.24,42.9739519]
[1756905468625,5.85766482,211.25,211.24,38.24]
[1756905469928,5.85766482,211.25,211.24,38.18]
[1756905470140,5.85766482,211.25,211.21,4.76443915]
[1756905470141,0.72,211.25,211.21,4.76443915]
[1756905470312,0.72,211.24,211.22,38.18]
[1756905470516,0.72,211.23,211.22,38.18]
[1756905470732,5.85766482,211.23,211.22,38.18]
[1756905471412,0.72,211.23,211.22,38.18]
[1756905471718,0.72,211.23,211.22,42.91440015]
[1756905472217,5.85766482,211.23,211.22,38.18]
[1756905472632,1e-08,211.27,211.22,38.18]
[1756905472633,5.13766482,211.24,211.22,38.18]
[1756905472830,5.85766482,211.23,211.21,0.03]
[1756905473020,5.13766482,211.22,211.21,0.03]
[1756905473206,5.13766482,211.22,211.21,38.23]
[1756905473412,5.85766482,211.22,211.21,38.23]
[1756905473914,1e-08,211.27,211.21,42.9446243]
[1756905474146,0.72,211.25,211.21,42.9446243]
[1756905474323,0.72,211.24,211.21,42.9446243]
[1756905474641,0.72,211.23,211.21,42.9446243]
[1756905475519,5.85766482,211.23,211.21,42.9446243]
[1756905475711,0.72,211.23,211.21,42.9446243]
[1756905475912,1e-08,211.27,211.21,54.78118506]
[1756905476132,5.13766482,211.26,211.21,54.78118506]
[1756905476514,0.72,211.25,211.21,54.78118506]
[1756905477263,5.85766482,211.25,211.21,54.78118506]
[1756905477536,0.72,211.25,211.21,54.78118506]
[1756905477735,4.01015451,211.25,211.23,4.73417601]
[1756905477935,4.01015451,211.25,211.24,38.54]
[1756905478713,0.72,211.25,211.23,4.73417601]
[1756905478915,0.72,211.24,211.23,4.73417601]
[1756905479120,4.01015451,211.24,211.23,38.52]
[1756905479322,0.72,211.24,211.23,38.52]
[1756905479522,4.01015451,211.24,211.21,0.03]
[1756905479709,3.29015451,211.22,211.21,0.03]
[1756905479923,1e-08,211.27,211.21,38.53]
[1756905480127,0.72,211.23,211.21,38.53]
[1756905480331,0.72,211.22,211.21,38.53]
[1756905480639,4.01015451,211.22,211.21,38.53]
[1756905480821,0.72,211.22,211.21,38.53]
[1756905481025,3.29015451,211.22,211.21,0.03]
[1756905481225,0.72,211.26,211.21,38.59]
[1756905481536,4.01015451,211.25,211.21,38.59]
[1756905481735,0.72,211.25,211.22,4.73440015]
[1756905481931,0.72,211.24,211.22,4.73440015]
[1756905482139,4.01015451,211.23,211.22,4.73440015]
[1756905482451,4.01015451,211.23,211.21,43.32459975]
[1756905482751,4.01015451,211.22,211.21,43.32459975]
[1756905483335,4.01015451,211.22,211.21,0.03]
[1756905483734,4.01015451,211.22,211.21,38.55]
[1756905484429,4.01015451,211.22,211.21,0.03]
[1756905485852,0.72,211.25,211.21,0.03]
[1756905486151,3.29015451,211.24,211.21,38.59]
[1756905486360,3.29015451,211.22,211.21,38.59]
[1756905486577,4.01015451,211.22,211.21,0.03]
[1756905486731,0.72,211.22,211.21,0.03]
[1756905487035,0.72,211.25,211.21,0.03]
[1756905487233,3.29015451,211.23,211.21,0.03]
[1756905487436,4.01015451,211.22,211.21,0.03]
[1756905488024,0.72,211.22,211.21,0.03]
[1756905488230,4.01015451,211.22,211.21,0.03]
[1756905489950,8.74455466,211.22,211.21,0.03]
[1756905490331,12.03470917,211.22,211.21,0.03]
[1756905491265,13.59559401,211.21,211.18,0.03]
[1756905491438,16.88574852,211.19,211.18,0.03]
[1756905491634,0.66,211.2,211.18,0.03]
[1756905491943,3.95015451,211.19,211.18,0.03]
[1756905493235,8.68522719,211.19,211.18,0.03]
[1756905493547,3.29015451,211.19,211.18,0.03]
[1756905493751,0.66,211.22,211.18,0.03]
[1756905493950,3.29015451,211.2,211.18,0.03]
[1756905494246,0.66,211.21,211.18,0.03]
[1756905494431,1e-08,211.27,211.18,0.71]
[1756905494432,3.29015451,211.23,211.18,0.71]
[1756905494633,3.29015451,211.22,211.18,0.03]
[1756905494847,3.29015451,211.19,211.18,0.03]
[1756905495241,3.95015451,211.19,211.18,0.03]
[1756905496158,8.68522719,211.19,211.18,0.03]
[1756905496938,22.2808212,211.19,211.18,0.03]
[1756905497141,5.39507268,211.19,211.18,0.03]
[1756905497859,13.59559401,211.21,211.18,0.03]
[1756905497860,3.29015451,211.21,211.18,0.03]
[1756905498064,13.59559401,211.25,211.18,0.03]
[1756905498065,3.29015451,211.22,211.18,0.03]
[1756905498944,0.66,211.22,211.18,0.03]
[1756905499156,3.29015451,211.22,211.18,0.03]
[1756905499362,3.95015451,211.22,211.18,0.03]
[1756905499667,0.66,211.21,211.18,0.03]
[1756905499963,0.66,211.22,211.18,0.03]
[1756905500156,3.29015451,211.21,211.18,0.03]
[1756905500359,3.95015451,211.21,211.18,0.03]
[1756905501548,3.29015451,211.23,211.18,0.71]
[1756905501760,3.95015451,211.24,211.19,0.68]
[1756905502359,3.95015451,211.24,211.18,3.32015451]
[1756905502360,3.29015451,211.22,211.18,4.7652969]
[1756905502761,3.95015451,211.21,211.18,0.03]
[1756905502959,3.95015451,211.2,211.18,0.03]
[1756905503355,3.29015451,211.19,211.18,0.03]
[1756905503555,0.66,211.23,211.18,0.03]
[1756905503754,3.29015451,211.21,211.18,0.03]
[1756905503971,0.66,211.23,211.18,0.03]
[1756905504151,3.29015451,211.22,211.18,0.03]
[1756905504481,3.95015451,211.22,211.18,0.03]
[1756905504654,3.29015451,211.21,211.18,0.03]
[1756905505981,3.29015451,211.2,211.18,0.03]
[1756905506156,0.66,211.23,211.18,0.03]
[1756905506464,3.29015451,211.21,211.18,0.03]
[1756905506668,1e-08,211.27,211.18,0.03]
[1756905506669,0.66,211.26,211.19,0.68]
[1756905506885,3.29015451,211.24,211.19,0.68]
[1756905507055,3.29015451,211.23,211.18,79.73]
[1756905507258,3.29015451,211.23,211.18,80.41]
[1756905507465,0.66,211.24,211.18,80.41]
[1756905507665,3.29015451,211.23,211.18,80.41]
[1756905508060,3.29015451,211.21,211.18,79.73]
[1756905508260,3.29015451,211.19,211.18,0.03]
[1756905508667,3.95015451,211.19,211.18,0.03]
[1756905510670,8.68522719,211.19,211.18,0.03]
[1756905510971,22.2808212,211.19,211.18,0.03]
[1756905511386,13.59559401,211.18,211.16,0.03]
[1756905511586,0.66,211.19,211.16,0.03]
[1756905511773,26.0,211.22,211.16,0.03]
[1756905511774,3.29015451,211.17,211.16,0.03]
[1756905511972,0.66,211.18,211.16,0.03]
[1756905511973,39.59559401,211.25,211.16,4.7657454]
[1756905512182,3.29015451,211.17,211.16,4.7657454]
[1756905512486,3.29015451,211.17,211.16,0.03]
[1756905513687,3.29015451,211.18,211.16,0.03]
[1756905513984,3.29015451,211.17,211.16,0.03]
[1756905514985,0.66,211.2,211.16,0.03]
[1756905515180,3.29015451,211.19,211.16,0.03]
[1756905515777,3.29015451,211.17,211.16,0.03]
[1756905516989,3.95015451,211.17,211.16,0.03]
[1756905518397,3.29015451,211.17,211.16,0.03]
[1756905519192,3.95015451,211.17,211.16,0.03]
[1756905519778,22.28126966,211.17,211.16,0.03]
[1756905521073,17.54574852,211.17,211.16,0.03]
[1756905521275,22.28126966,211.17,211.16,0.03]
[1756905522490,39.59559401,211.14,211.13,0.03]
[1756905522670,42.88574852,211.14,211.13,0.03]
[1756905522872,40.24559401,211.14,211.13,0.03]
[1756905523073,43.53574852,211.14,211.13,0.03]
[1756905523273,48.27194251,211.14,211.13,0.03]
[1756905524197,43.53574852,211.14,211.13,0.03]
[1756905525594,40.24559401,211.14,211.13,0.03]
[1756905525796,43.53574852,211.14,211.13,0.03]
[1756905525993,48.27194251,211.14,211.13,0.03]
[1756905527701,83.321788,211.14,211.13,0.03]
[1756905528004,86.61194251,211.14,211.13,0.03]
[1756905529307,86.59194251,211.14,211.13,0.03]
[1756905531381,86.59194251,211.14,211.1,0.03]
[1756905531382,13.59559401,211.13,211.1,0.03]
[1756905531782,3.29015451,211.11,211.1,0.03]
[1756905532006,41.55015451,211.11,211.1,0.03]
[1756905532199,42.20015451,211.11,211.1,0.03]
[1756905533186,60.53261555,211.11,211.1,0.03]
[1756905534101,16.88574852,211.11,211.1,0.03]
[1756905536104,17.53574852,211.11,211.1,0.03]
[1756905536417,22.27261555,211.11,211.1,0.03]
[1756905539604,24.13408489,211.11,211.1,0.03]
[1756905540288,50.13408489,211.11,211.1,0.03]
[1756905541690,55.28570874,211.11,211.1,0.03]
[1756905541891,45.39721786,211.11,211.1,0.03]
[1756905542205,44.74721786,211.11,211.1,0.03]
[1756905543798,39.59559401,211.11,211.1,0.03]
[1756905544010,44.74721786,211.11,211.1,0.03]
[1756905544503,39.59559401,211.11,211.1,0.03]
[1756905544831,44.74721786,211.11,211.1,0.03]
[1756905545187,5.15162385,211.11,211.1,0.74]
[1756905545509,5.15162385,211.11,211.1,5.47709142]
[1756905545808,5.15162385,211.11,211.1,0.03]
[1756905547193,5.15162385,211.11,211.1,0.74]
[1756905547396,0.06,211.15,211.1,5.47709142]
[1756905547603,0.06,211.15,211.11,0.71]
[1756905548683,5.21162385,211.15,211.11,0.71]
[1756905550021,0.06,211.15,211.12,4.73664266]
[1756905550185,0.06,211.15,211.14,26.0]
[1756905550389,0.06,211.15,211.14,31.15162385]
[1756905550685,0.06,211.2,211.14,31.86162385]
[1756905550884,0.06,211.2,211.15,31.86162385]
[1756905551414,0.06,211.2,211.16,0.71]
[1756905551594,5.15162385,211.19,211.16,0.71]
[1756905551794,5.21162385,211.18,211.16,0.71]
[1756905552007,0.06,211.18,211.17,0.68]
[1756905552411,5.21162385,211.18,211.17,0.68]
[1756905552600,0.06,211.18,211.17,0.68]
[1756905554004,0.06,211.18,211.17,10.56714499]
[1756905555196,0.06,211.18,211.17,90.26714499]
[1756905556916,0.06,211.18,211.17,92.16490326]
[1756905557396,0.06,211.18,211.17,130.22490326]
[1756905558299,0.06,211.18,211.17,125.07327941]
[1756905558702,0.06,211.18,211.17,130.22490326]
[1756905559921,0.06,211.18,211.17,125.07327941]
[1756905560512,0.06,211.18,211.17,130.22490326]
[1756905561504,0.06,211.18,211.17,87.01327941]
[1756905561707,0.06,211.18,211.17,125.07327941]
[1756905561905,0.06,211.18,211.17,86.33327941]
[1756905562228,5.21162385,211.18,211.14,38.06]
[1756905562528,0.06,211.18,211.15,43.89162385]
[1756905562828,0.06,211.18,211.16,38.72]
[1756905563607,0.06,211.18,211.17,10.56714499]
[1756905564224,1e-08,211.18,211.17,12.46481323]
[1756905566333,1e-08,211.18,211.17,7.31318938]
[1756905566513,1e-08,211.18,211.17,12.46481323]
[1756905568711,0.06,211.26,211.21,39.59559401]
[1756905568914,0.06,211.26,211.25,31.15162385]
[1756905569115,1.89685833,211.42,211.25,69.19162385]
[1756905569419,5.84162385,211.36,211.3,5.15162385]
[1756905569746,0.69,211.35,211.31,38.04]
[1756905570032,5.15162385,211.36,211.31,38.04]
[1756905570033,0.69,211.34,211.31,38.04]
[1756905570409,0.69,211.34,211.32,4.73215975]
[1756905570933,13.59559401,211.39,211.32,4.73215975]
[1756905571122,0.69,211.36,211.32,4.73215975]
[1756905571328,0.69,211.35,211.32,4.73215975]
[1756905571721,5.84162385,211.34,211.32,38.04]
[1756905571920,0.69,211.33,211.32,38.04]
[1756905574208,5.84162385,211.33,211.29,4.73278697]
[1756905574414,0.69,211.32,211.31,38.02]
[1756905574835,4.73132972,211.36,211.31,38.02]
[1756905575119,5.15162385,211.34,211.31,38.02]
[1756905575311,5.84162385,211.33,211.31,38.02]
[1756905575538,0.69,211.32,211.31,38.02]
[1756905576612,0.69,211.32,211.31,42.7523837]
[1756905576817,5.84162385,211.34,211.31,42.7523837]
[1756905577023,0.69,211.33,211.31,42.7523837]
[1756905577233,0.2,211.37,211.31,42.7523837]
[1756905577234,0.89,211.37,211.31,42.7523837]
[1756905577431,5.15162385,211.36,211.31,42.7523837]
[1756905577628,0.69,211.36,211.31,47.90400755]
[1756905578016,5.35162385,211.37,211.31,47.90400755]
[1756905578017,0.2,211.37,211.33,5.15162385]
[1756905578221,0.2,211.37,211.34,38.02]
[1756905578532,0.89,211.37,211.34,42.75154135]
[1756905578733,0.89,211.37,211.35,38.02]
[1756905578932,0.89,211.37,211.34,4.73154135]
[1756905579131,0.89,211.37,211.35,38.02]
[1756905580415,0.69,211.36,211.34,38.02]
[1756905580623,0.2,211.37,211.34,38.02]
[1756905580838,0.69,211.36,211.34,38.02]
[1756905581140,0.69,211.35,211.31,4.7323837]
[1756905581342,0.69,211.35,211.32,38.02]
[1756905581544,0.2,211.37,211.32,38.02]
[1756905581753,0.2,211.37,211.34,5.15162385]
[1756905581923,0.2,211.37,211.35,38.02]
[1756905582128,0.2,211.37,211.36,5.15162385]
[1756905582430,0.2,211.37,211.35,4.73140699]
[1756905582631,0.2,211.37,211.36,38.02]
[1756905584424,0.2,211.37,211.36,42.75126419]
[1756905585053,6.04162385,211.37,211.32,5.84162385]
[1756905585244,5.15162385,211.34,211.32,38.0]
[1756905585443,0.69,211.33,211.32,38.0]
[1756905585651,5.15162385,211.35,211.32,38.0]
[1756905585953,5.84162385,211.35,211.32,38.0]
[1756905586154,0.2,211.37,211.32,38.0]
[1756905586560,0.69,211.36,211.32,42.73202943]
[1756905586765,0.2,211.37,211.32,42.73202943]
[1756905586940,0.89,211.37,211.32,42.73202943]
[1756905587140,6.04162385,211.37,211.32,42.73202943]
[1756905587659,0.89,211.37,211.32,42.73202943]
[1756905587840,6.04162385,211.37,211.32,42.73202943]
[1756905588243,5.84162385,211.36,211.33,38.0]
[1756905588656,5.15162385,211.36,211.29,0.68]
[1756905588856,5.84162385,211.35,211.3,38.0]
[1756905589048,0.69,211.34,211.3,38.0]
[1756905589351,5.15162385,211.35,211.29,31.83162385]
[1756905589564,5.15162385,211.35,211.21,79.73]
[1756905589565,39.59559401,211.33,211.23,0.03]
[1756905589750,5.15162385,211.27,211.23,38.03]
[1756905590052,5.84162385,211.27,211.26,0.03]
[1756905590972,24.17049754,211.27,211.26,0.03]
[1756905591167,14.28559401,211.27,211.26,0.03]
[1756905591339,19.43721786,211.27,211.26,0.03]
[1756905591545,5.84162385,211.27,211.26,0.03]
[1756905592055,10.57490353,211.27,211.26,0.03]
[1756905592240,24.17049754,211.27,211.26,0.03]
[1756905592568,14.28559401,211.27,211.26,0.03]
[1756905593064,10.57490353,211.27,211.26,0.03]
[1756905594938,24.17049754,211.27,211.26,0.03]
[1756905595748,26.06870611,211.27,211.26,0.03]
[1756905597766,44.74721786,211.24,211.23,0.03]
[1756905597949,13.59559401,211.23,211.21,0.03]
[1756905598148,18.74721786,211.22,211.21,0.03]
[1756905598342,13.59559401,211.22,211.21,0.03]
[1756905598549,19.43721786,211.22,211.21,0.03]
[1756905599170,24.17161801,211.22,211.21,0.03]
[1756905599469,22.31338975,211.22,211.21,0.03]
[1756905600649,35.48697211,211.22,211.15,0.03]
[1756905600858,16.8889896,211.16,211.15,0.03]
[1756905601273,17.5789896,211.16,211.15,0.03]
[1756905602085,26.0,211.2,211.15,0.03]
[1756905602270,13.59559401,211.19,211.15,0.03]
[1756905602581,3.29339559,211.17,211.15,0.71]
[1756905603075,3.29339559,211.18,211.15,0.71]
[1756905603383,3.29339559,211.21,211.16,0.68]
[1756905603771,13.59559401,211.23,211.17,0.68]
[1756905604082,3.29339559,211.22,211.17,0.68]
[1756905604287,3.29339559,211.22,211.18,0.68]
[1756905604901,3.29339559,211.22,211.19,4.73507268]
[1756905605183,13.59559401,211.24,211.19,4.73507268]
[1756905605361,3.29339559,211.22,211.19,4.73507268]
[1756905606088,3.29339559,211.22,211.15,3.32339559]
[1756905606264,3.29339559,211.21,211.16,4.7357454]
[1756905606592,3.29339559,211.21,211.17,0.68]
[1756905606795,3.29339559,211.22,211.18,0.68]
[1756905606981,3.29339559,211.22,211.16,8.70914099]
[1756905607487,3.35339559,211.22,211.16,8.70914099]
[1756905607980,3.29339559,211.21,211.16,5.4157454]
[1756905608187,3.29339559,211.2,211.15,4.76595965]
[1756905608375,3.98339559,211.2,211.15,4.76595965]
[1756905608688,3.29339559,211.2,211.15,5.44595965]
[1756905608988,3.29339559,211.21,211.16,0.68]
[1756905609189,0.06,211.22,211.18,3.29339559]
[1756905609488,0.06,211.22,211.2,3.29339559]
[1756905609700,0.06,211.22,211.21,0.68]
[1756905610190,0.06,211.22,211.21,4.7346243]
[1756905610393,0.06,211.22,211.19,3.97339559]
[1756905610607,0.06,211.22,211.18,26.0]
[1756905610608,3.35339559,211.22,211.16,3.97339559]
[1756905610903,0.06,211.22,211.17,3.29339559]
[1756905611089,0.06,211.22,211.17,3.97339559]
[1756905611386,0.06,211.22,211.18,0.68]
[1756905612596,0.06,211.22,211.19,4.73507268]
[1756905612779,0.06,211.22,211.16,31.3957454]
[1756905612978,0.06,211.22,211.16,34.02914099]
[1756905613292,0.06,211.22,211.17,3.95339559]
[1756905613881,0.06,211.22,211.21,3.29339559]
[1756905614294,0.06,211.22,211.19,0.66]
[1756905614493,0.06,211.22,211.21,4.7346243]
[1756905614888,0.06,211.22,211.21,5.3946243]
[1756905615192,0.06,211.22,211.21,4.7346243]
[1756905616577,0.06,211.22,211.2,4.73484848]
[1756905616780,0.06,211.22,211.21,3.29339559]
[1756905616981,0.06,211.22,211.21,3.95339559]
[1756905617985,0.06,211.22,211.21,8.68801989]
[1756905619398,1e-08,211.22,211.21,8.68801989]
[1756905620702,1e-08,211.22,211.21,4.7346243]
[1756905621687,1e-08,211.22,211.2,4.73484848]
[1756905621887,0.67,211.21,211.17,4.73552114]
[1756905622110,1e-08,211.22,211.15,26.03]
[1756905622111,3.29339559,211.18,211.15,0.03]
[1756905622280,0.67,211.17,211.15,0.03]
[1756905622789,0.67,211.17,211.15,4.76590576]
[1756905622987,0.67,211.17,211.15,0.03]
[1756905622988,0.67,211.16,211.15,0.03]
[1756905625206,0.67,211.18,211.15,0.03]
[1756905625409,0.67,211.16,211.15,0.03]
[1756905626813,3.29339559,211.17,211.15,0.03]
[1756905627187,3.96339559,211.17,211.15,0.03]
[1756905628899,0.67,211.16,211.15,0.03]
[1756905629115,3.96339559,211.16,211.15,0.03]
[1756905630303,17.5589896,211.16,211.15,0.03]
[1756905631317,22.294735,211.16,211.15,0.03]
[1756905631922,17.5589896,211.16,211.15,0.03]
[1756905632098,0.67,211.16,211.15,0.03]
[1756905632302,3.29339559,211.17,211.15,0.03]
[1756905632803,3.29339559,211.16,211.15,0.03]
[1756905633119,26.0,211.21,211.15,0.03]
[1756905633120,13.59559401,211.19,211.15,0.03]
[1756905633427,0.67,211.2,211.15,0.03]
[1756905633428,3.29339559,211.18,211.15,0.03]
[1756905633609,3.29339559,211.16,211.15,0.03]
[1756905633989,0.67,211.17,211.15,0.03]
[1756905634197,3.29339559,211.16,211.15,0.03]
[1756905634394,3.96339559,211.16,211.15,0.03]
[1756905634613,3.29339559,211.16,211.15,0.03]
[1756905634830,3.29339559,211.17,211.15,0.03]
[1756905635006,0.67,211.16,211.15,0.03]
[1756905635332,17.5589896,211.16,211.15,0.03]
[1756905636210,22.294735,211.16,211.15,0.03]
[1756905637011,17.5589896,211.16,211.15,0.03]
[1756905638401,22.294735,211.16,211.15,0.03]
[1756905642519,17.5589896,211.16,211.15,0.03]
[1756905642712,60.294735,211.16,211.15,0.03]
[1756905645523,55.5589896,211.16,211.15,0.03]
[1756905645725,14.26559401,211.16,211.15,0.03]
[1756905645917,55.5589896,211.16,211.15,0.03]
[1756905646218,60.294735,211.16,211.15,0.03]
[1756905647322,55.5589896,211.16,211.15,0.03]
[1756905647716,54.8889896,211.16,211.15,0.03]
[1756905647924,60.324735,211.16,211.15,0.03]
[1756905649805,39.59559401,211.13,211.12,0.03]
[1756905650030,80.8889896,211.13,211.12,0.03]
[1756905650227,81.5889896,211.13,211.12,0.03]
[1756905650522,13.59559401,211.12,211.1,0.03]
[1756905650713,3.29339559,211.11,211.1,0.03]
[1756905650918,3.99339559,211.11,211.1,0.03]
[1756905652013,13.59559401,211.12,211.1,0.03]
[1756905652213,16.8889896,211.12,211.1,0.03]
[1756905652634,3.29339559,211.11,211.1,0.03]
[1756905654635,13.59559401,211.13,211.1,0.03]
[1756905654815,3.29339559,211.11,211.1,0.03]
[1756905657545,3.99339559,211.11,211.1,0.03]
[1756905657724,20.18238519,211.09,211.08,0.03]
[1756905657919,16.8889896,211.09,211.08,0.03]
[1756905658127,17.5889896,211.09,211.08,0.03]
[1756905659515,24.60093753,211.09,211.08,0.03]